fUSD/lending_fUSD_20251012
["ID","MTS","AMOUNT","RATE_DAILY","PERIOD"]
[391077022,1760304658765,-500.0,0.00027781,60]
[391077023,1760304658775,-500.0,0.00027781,60]
[391077024,1760304658784,-500.0,0.00027781,2]
[391077025,1760304658793,-603.0,0.00027781,60]
[391077026,1760304658803,-430.0,0.00027781,2]
[391077027,1760304658812,-500.0,0.00027781,14]
[391077028,1760304658822,-500.0,0.00027781,60]
[391077029,1760304658831,-500.0,0.00027781,60]
[391077030,1760304658841,-416.0,0.00027781,60]
[391077031,1760304658851,-500.0,0.00027781,60]
[391077032,1760304658862,-1900.0,0.00027794,7]
[391077033,1760304658872,-1800.0,0.00027802,7]
[391077034,1760304658882,-200.0,0.00027818,2]
[391077035,1760304658892,-500.0,0.00027835,60]
[391077036,1760304658901,-500.0,0.00027835,60]
[391077037,1760304658911,-500.0,0.00027835,2]
[391077038,1760304658921,-603.0,0.00027835,60]
[391077039,1760304658931,-430.0,0.00027835,2]
[391077040,1760304658941,-500.0,0.00027835,14]
[391077041,1760304658950,-326.0,0.00027835,60]
[391077042,1760304658959,-300.0,0.00027835,60]
[391077043,1760304658969,-416.0,0.00027835,60]
[391077044,1760304658979,-500.0,0.00027835,60]
[391077045,1760304658988,-150.0,0.00027844,15]
[391077046,1760304658997,-386.87667747,0.00027846,2]
[391077047,1760304659007,-309.29654756,0.00027846,2]
[391077048,1760304659016,-652.0,0.00027868,2]
[391077049,1760304659026,-500.0,0.0002789,60]
[391077050,1760304659035,-500.0,0.0002789,60]
[391077051,1760304659045,-500.0,0.0002789,2]
[391077052,1760304659054,-603.0,0.0002789,60]
[391077053,1760304659064,-430.0,0.0002789,2]
[391077054,1760304659073,-500.0,0.0002789,14]
[391077055,1760304659084,-416.0,0.0002789,60]
[391077056,1760304659095,-614.38300156,0.0002789,60]
[391077057,1760304659105,-1900.0,0.00027893,7]
[391077058,1760304659115,-9200.0,0.00027919,7]
[391077059,1760304659125,-150.0,0.00027944,15]
[391077060,1760304659135,-500.0,0.00027945,60]
[391077061,1760304659144,-500.0,0.00027945,60]
[391077062,1760304659153,-561.18424308,0.00027945,2]
[391077063,1760304659163,-603.0,0.00027945,60]
[391077064,1760304659173,-430.0,0.00027945,2]
[391077065,1760304659183,-500.0,0.00027945,14]
[391077066,1760304659193,-416.0,0.00027945,60]
[391077067,1760304659202,-600.0,0.00027945,2]
[391077068,1760304659212,-270.0455652,0.00027946,2]
[391077069,1760304659221,-200.0,0.00027948,2]
[391077070,1760304659231,-200.0,0.00027948,2]
[391077071,1760304659241,-1400.0,0.00027971,7]
[391077072,1760304659250,-1900.0,0.00027973,7]
[391077073,1760304659260,-852.26004279,0.00027977,2]
[391077074,1760304659270,-1425.0,0.00027987,2]
[391077075,1760304659280,-500.0,0.00028,60]
[391077076,1760304659290,-317.0,0.00028,60]
[391077077,1760304659299,-603.0,0.00028,60]
[391077078,1760304659309,-430.0,0.00028,2]
[391077079,1760304659318,-422.63210664,0.00028,14]
[391077080,1760304659328,-416.0,0.00028,60]
[391077081,1760304659338,-281.85,0.00028,2]
[391077082,1760304659347,-240.0,0.00028,2]
[391077083,1760304659358,-642.0,0.00028,2]
[391077084,1760304659368,-160.0,0.00028,2]
[391077085,1760304659377,-1293.0,0.00028,2]
[391077086,1760304659387,-1001.0,0.00028,2]
[391077087,1760304659405,-1724.0,0.00028,10]
[391077088,1760304659414,-1006.57,0.00028,30]
[391077089,1760304659424,-2500.0,0.00028014,7]
[391077090,1760304659434,-150.0,0.00028044,15]
[391077091,1760304659447,-1400.0,0.00028054,7]
[391077092,1760304659460,-500.0,0.00028055,60]
[391077093,1760304659472,-603.0,0.00028055,60]
[391077094,1760304659482,-430.0,0.00028055,2]
[391077095,1760304659492,-416.0,0.00028055,60]
[391077096,1760304659501,-1425.0,0.00028057,2]
[391077097,1760304659510,-152.0,0.00028095,3]
[391077098,1760304659520,-200.0,0.00028096,2]
[391077099,1760304659529,-1800.0,0.00028097,7]
[391077100,1760304659538,-500.0,0.000281,2]
[391077101,1760304659548,-500.0,0.00028109,60]
[391077102,1760304659557,-603.0,0.00028109,60]
[391077103,1760304659567,-430.0,0.00028109,2]
[391077104,1760304659576,-416.0,0.00028109,60]
[391077105,1760304659586,-1425.0,0.00028126,2]
[391077106,1760304659596,-1800.0,0.00028128,7]
[391077107,1760304659607,-150.0,0.00028144,15]
[391077108,1760304659616,-150.0,0.0002815,30]
[391077109,1760304659626,-1900.0,0.00028153,7]
[391077110,1760304659636,-500.0,0.00028164,60]
[391077111,1760304659645,-603.0,0.00028164,60]
[391077112,1760304659655,-430.0,0.00028164,2]
[391077113,1760304659665,-416.0,0.00028164,60]
[391077114,1760304659675,-1425.0,0.00028166,2]
[391077115,1760304659685,-2000.0,0.00028174,120]
[391077116,1760304659694,-1425.0,0.00028178,2]
[391077117,1760304659704,-652.0,0.00028189,7]
[391077118,1760304659713,-653.0,0.00028198,2]
[391077119,1760304659723,-1800.0,0.00028218,7]
[391077120,1760304659732,-388.0,0.00028219,60]
[391077121,1760304659742,-603.0,0.00028219,60]
[391077122,1760304659756,-430.0,0.00028219,2]
[391077123,1760304659766,-176.0,0.00028219,60]
[391077124,1760304659776,-416.0,0.00028219,60]
[391077125,1760304659785,-2200.0,0.00028225,7]
[391077126,1760304659794,-200.0,0.00028227,2]
[391077127,1760304659804,-200.0,0.00028227,2]
[391077128,1760304659813,-532.0,0.00028235,2]
[391077129,1760304659823,-532.0,0.00028235,2]
[391077130,1760304659832,-532.0,0.00028235,2]
[391077131,1760304659842,-532.0,0.00028235,2]
[391077132,1760304659851,-532.0,0.00028235,2]
[391077133,1760304659862,-532.0,0.00028235,2]
[391077134,1760304659872,-532.0,0.00028235,2]
[391077135,1760304659882,-532.0,0.00028235,2]
[391077136,1760304659892,-532.0,0.00028235,2]
[391077137,1760304659902,-532.0,0.00028235,2]
[391077138,1760304659911,-440.0,0.00028236,2]
[391077139,1760304659921,-440.0,0.00028236,2]
[391077140,1760304659930,-440.0,0.00028236,2]
[391077141,1760304659939,-440.0,0.00028236,2]
[391077142,1760304659949,-440.0,0.00028236,2]
[391077143,1760304659959,-440.0,0.00028236,2]
[391077144,1760304659968,-440.0,0.00028236,2]
[391077145,1760304659979,-440.0,0.00028236,2]
[391077146,1760304659988,-440.0,0.00028236,2]
[391077147,1760304659998,-440.0,0.00028236,2]
[391077148,1760304660008,-538.0,0.00028238,2]
[391077149,1760304660017,-538.0,0.00028238,2]
[391077150,1760304660028,-538.0,0.00028238,2]
[391077151,1760304660038,-538.0,0.00028238,2]
[391077152,1760304660048,-538.0,0.00028238,2]
[391077153,1760304660058,-538.0,0.00028238,2]
[391077154,1760304660068,-538.0,0.00028238,2]
[391077155,1760304660077,-538.0,0.00028238,2]
[391077156,1760304660087,-538.0,0.00028238,2]
[391077157,1760304660097,-538.0,0.00028238,2]
[391077158,1760304660108,-485.0,0.00028238,2]
[391077159,1760304660118,-485.0,0.00028238,2]
[391077160,1760304660128,-485.0,0.00028238,2]
[391077161,1760304660137,-485.0,0.00028238,2]
[391077162,1760304660147,-485.0,0.00028238,2]
[391077163,1760304660156,-485.0,0.00028238,2]
[391077164,1760304660166,-485.0,0.00028238,2]
[391077165,1760304660175,-485.0,0.00028238,2]
[391077166,1760304660184,-485.0,0.00028238,2]
[391077167,1760304660193,-485.0,0.00028238,2]
[391077168,1760304660202,-1425.0,0.0002824,2]
[391077169,1760304660211,-415.0,0.0002824,2]
[391077170,1760304660221,-415.0,0.0002824,2]
[391077171,1760304660231,-415.0,0.0002824,2]
[391077172,1760304660240,-415.0,0.0002824,2]
[391077173,1760304660249,-415.0,0.0002824,2]
[391077174,1760304660260,-415.0,0.0002824,2]
[391077175,1760304660269,-415.0,0.0002824,2]
[391077176,1760304660283,-415.0,0.0002824,2]
[391077177,1760304660293,-415.0,0.0002824,2]
[391077178,1760304660304,-415.0,0.0002824,2]
[391077179,1760304660314,-330.0,0.00028241,2]
[391077180,1760304660324,-330.0,0.00028241,2]
[391077181,1760304660334,-330.0,0.00028241,2]
[391077182,1760304660343,-330.0,0.00028241,2]
[391077183,1760304660352,-330.0,0.00028241,2]
[391077184,1760304660364,-330.0,0.00028241,2]
[391077185,1760304660374,-330.0,0.00028241,2]
[391077186,1760304660383,-330.0,0.00028241,2]
[391077187,1760304660398,-330.0,0.00028241,2]
[391077188,1760304660408,-330.0,0.00028241,2]
[391077189,1760304660417,-399.0,0.00028243,2]
[391077190,1760304660426,-399.0,0.00028243,2]
[391077191,1760304660436,-399.0,0.00028243,2]
[391077192,1760304660446,-399.0,0.00028243,2]
[391077193,1760304660455,-399.0,0.00028243,2]
[391077194,1760304660467,-399.0,0.00028243,2]
[391077195,1760304660476,-399.0,0.00028243,2]
[391077196,1760304660486,-399.0,0.00028243,2]
[391077197,1760304660495,-399.0,0.00028243,2]
[391077198,1760304660504,-399.0,0.00028243,2]
[391077199,1760304660514,-233.0,0.00028243,2]
[391077200,1760304660524,-233.0,0.00028243,2]
[391077201,1760304660534,-233.0,0.00028243,2]
[391077202,1760304660544,-233.0,0.00028243,2]
[391077203,1760304660556,-233.0,0.00028243,2]
[391077204,1760304660570,-233.0,0.00028243,2]
[391077205,1760304660581,-233.0,0.00028243,2]
[391077206,1760304660591,-233.0,0.00028243,2]
[391077207,1760304660600,-233.0,0.00028243,2]
[391077208,1760304660611,-233.0,0.00028243,2]
[391077209,1760304660621,-150.0,0.00028244,15]
[391077210,1760304660632,-1800.0,0.00028248,7]
[391077211,1760304660641,-1182.0,0.00028259,2]
[391077212,1760304660650,-2545.0,0.00028259,2]
[391077213,1760304660660,-500.86742781,0.00028266,7]
[391077214,1760304660670,-603.0,0.00028274,60]
[391077215,1760304660680,-430.0,0.00028274,2]
[391077216,1760304660689,-416.0,0.00028274,60]
[391077217,1760304660698,-600.0,0.00028278,7]
[391077218,1760304660707,-1000.0,0.00028293,2]
[391077219,1760304660717,-2000.0,0.00028306,120]
[391077220,1760304660727,-2000.0,0.00028306,120]
[391077221,1760304660736,-2000.0,0.00028306,120]
[391077222,1760304660745,-172.777,0.00028306,120]
[391077223,1760304660754,-444.381,0.00028306,120]
[391077224,1760304660763,-1000.0,0.00028306,90]
[391077225,1760304660773,-1000.0,0.00028306,90]
[391077226,1760304660782,-1000.0,0.00028306,90]
[391077227,1760304660791,-500.0,0.00028312,7]
[391077228,1760304660800,-15536.71221566,0.00028322,9]
[391077229,1760304660809,-603.0,0.00028329,60]
[391077230,1760304660818,-430.0,0.00028329,2]
[391077231,1760304660827,-416.0,0.00028329,60]
[391077232,1760304660837,-5789.3771271,0.00028332,2]
[391077233,1760304660846,-150.0,0.00028344,15]
[391077234,1760304660858,-603.0,0.00028383,60]
[391077235,1760304660867,-430.0,0.00028383,2]
[391077236,1760304660876,-416.0,0.00028383,60]
[391077237,1760304660886,-600.0,0.00028419,7]
[391077238,1760304660895,-1200.0,0.00028427,7]
[391077239,1760304660904,-1200.0,0.00028428,7]
[391077240,1760304660913,-603.0,0.00028438,60]
[391077241,1760304660922,-430.0,0.00028438,2]
[391077242,1760304660931,-416.0,0.00028438,60]
[391077243,1760304660940,-150.0,0.00028444,15]
[391077244,1760304660950,-500.0,0.00028455,7]
[391077245,1760304660959,-2200.0,0.00028461,7]
[391077246,1760304660969,-1400.0,0.00028483,7]
[391077247,1760304660978,-603.0,0.00028493,60]
[391077248,1760304660987,-430.0,0.00028493,2]
[391077249,1760304660996,-416.0,0.00028493,60]
[391077250,1760304661005,-163.17,0.00028493,2]
[391077251,1760304661015,-600.0,0.00028493,2]
[391077252,1760304661024,-280.03725112,0.00028494,2]
[391077253,1760304661033,-1006.57,0.000285,30]
[391077254,1760304661043,-2506.440469,0.000285,2]
[391077255,1760304661052,-1000.0,0.00028508,2]
[391077256,1760304661061,-200.0,0.00028509,2]
[391077257,1760304661071,-200.0,0.00028509,2]
[391077258,1760304661080,-600.0,0.0002853,7]
[391077259,1760304661089,-150.0,0.00028544,15]
[391077260,1760304661098,-1400.0,0.00028546,7]
[391077261,1760304661107,-603.0,0.00028548,60]
[391077262,1760304661117,-430.0,0.00028548,2]
[391077263,1760304661126,-416.0,0.00028548,60]
[391077264,1760304661136,-1425.0,0.00028548,2]
[391077265,1760304661146,-1000.0,0.00028558,2]
[391077266,1760304661155,-2200.0,0.00028592,7]
[391077267,1760304661165,-1800.0,0.00028593,7]
[391077268,1760304661175,-603.0,0.00028602,60]
[391077269,1760304661186,-430.0,0.00028602,2]
[391077270,1760304661197,-416.0,0.00028602,60]
[391077271,1760304661210,-1000.0,0.00028643,2]
[391077272,1760304661221,-150.0,0.00028644,15]
[391077273,1760304661231,-1494.39021038,0.00028648,2]
[391077274,1760304661242,-9200.0,0.00028657,7]
[391077275,1760304661253,-1425.0,0.00028657,2]
[391077276,1760304661263,-625.81373,0.00028657,60]
[391077277,1760304661273,-444.35459763,0.00028657,2]
[391077278,1760304661284,-435.0,0.00028657,60]
[391077279,1760304661294,-224.46582631,0.0002866,2]
[391077280,1760304661306,-500.0,0.0002867,7]
[391077281,1760304661317,-170.51836466,0.0002868,7]
[391077282,1760304661328,-500.0,0.0002868,7]
[391077283,1760304661339,-54636.98396383,0.0002868,2]
[391077284,1760304661350,-653.0,0.00028694,7]
[391077285,1760304661363,-150.0,0.00028698,30]
[391077286,1760304661374,-153.95902828,0.000287,2]
[391077287,1760304661385,-4500.0,0.000287,11]
[391077288,1760304661401,-600.0,0.00028708,7]
[391077289,1760304661411,-314.67531194,0.00028725,2]
[391077290,1760304661422,-5024.39674766,0.00028727,8]
[391077291,1760304661432,-216.7410725,0.0002873,8]
[391077292,1760304661443,-1425.0,0.00028735,2]
[391077293,1760304661454,-228.84391104,0.00028739,8]
[391077294,1760304661463,-5024.39674766,0.00028742,8]
[391077295,1760304661475,-150.0,0.00028744,15]
[391077296,1760304661486,-228.48015751,0.00028745,8]
[391077297,1760304661498,-4506.42170617,0.00028748,8]
[391077298,1760304661509,-228.84391104,0.00028751,8]
[391077299,1760304661521,-1800.0,0.00028754,7]
[391077300,1760304661531,-150.0,0.00028754,2]
[391077301,1760304661542,-9200.0,0.00028757,7]
[391077302,1760304661559,-2807.70463271,0.00028758,8]
[391077303,1760304661573,-1625.57063759,0.0002876,2]
[391077304,1760304661584,-1425.0,0.00028764,2]
[391077305,1760304661596,-2807.70463271,0.00028764,8]
[391077306,1760304661607,-163.90965281,0.00028766,8]
[391077307,1760304661618,-450.0,0.00028767,2]
[391077308,1760304661630,-500.0,0.00028768,7]
[391077309,1760304661641,-4506.42170617,0.00028769,8]
[391077310,1760304661651,-228.48015751,0.00028774,8]
[391077311,1760304661662,-228.84391104,0.00028782,8]
[391077312,1760304661674,-228.48015751,0.00028786,8]
[391077313,1760304661685,-163.90965281,0.00028796,8]
[391077314,1760304661696,-1425.0,0.00028797,2]
[391077315,1760304661708,-1000.0,0.000288,2]
[391077316,1760304661718,-185.67997574,0.00028803,8]
[391077317,1760304661730,-500.0,0.00028805,7]
[391077318,1760304661741,-4532.87633612,0.00028809,8]
[391077319,1760304661751,-246.19943958,0.00028813,8]
[391077320,1760304661762,-1000.0,0.00028817,2]
[391077321,1760304661773,-2514.80149293,0.00028818,8]
[391077322,1760304661784,-2500.0,0.00028818,7]
[391077323,1760304661795,-652.0,0.00028818,2]
[391077324,1760304661808,-2807.70463271,0.00028825,8]
[391077325,1760304661819,-246.19943958,0.00028839,8]
[391077326,1760304661830,-2200.0,0.00028841,7]
[391077327,1760304661841,-4506.42170617,0.00028841,8]
[391077328,1760304661852,-150.0,0.00028844,15]
[391077329,1760304661865,-216.7410725,0.00028844,8]
[391077330,1760304661877,-246.19943958,0.00028846,8]
[391077331,1760304661887,-216.7410725,0.00028848,8]
[391077332,1760304661897,-2514.80149293,0.00028852,8]
[391077333,1760304661907,-163.90965281,0.00028853,8]
[391077334,1760304661916,-792.38,0.00028867,30]
[391077335,1760304661927,-700.0,0.0002887,2]
[391077336,1760304661938,-2514.80149293,0.0002887,8]
[391077337,1760304661950,-1200.0,0.00028871,7]
[391077338,1760304661962,-150.0,0.00028874,2]
[391077339,1760304661975,-185.67997574,0.00028877,8]
[391077340,1760304661986,-185.67997574,0.00028881,8]
[391077341,1760304661996,-4532.87633612,0.00028883,8]
[391077342,1760304662006,-652.0,0.00028888,2]
[391077343,1760304662016,-5024.39674766,0.00028896,8]
[391077344,1760304662026,-4532.87633612,0.00028898,8]
[391077345,1760304662035,-652.0,0.00028901,2]
[391077346,1760304662046,-166.66,0.00028926,2]
[391077347,1760304662057,-652.0,0.00028926,2]
[391077348,1760304662068,-1425.0,0.00028928,2]
[391077349,1760304662079,-1900.0,0.00028947,7]
[391077350,1760304662092,-1425.0,0.00028966,2]
[391077351,1760304662103,-1425.0,0.00028967,2]
[391077352,1760304662115,-500.0,0.00028969,7]
[391077353,1760304662126,-200.0,0.0002898,2]
[391077354,1760304662137,-399.30222986,0.00028985,2]
[391077355,1760304662147,-161.0,0.00028997,14]
[391077356,1760304662157,-165.0,0.00028997,14]
[391077357,1760304662167,-150.0,0.00029,3]
[391077358,1760304662179,-2885.0,0.00029,12]
[391077359,1760304662189,-475.28169836,0.00029,30]
[391077360,1760304662200,-1006.57,0.00029,30]
[391077361,1760304662211,-1001.0,0.00029,2]
[391077362,1760304662222,-1500.0,0.00029,2]
[391077363,1760304662233,-1200.0,0.00029008,7]
[391077364,1760304662244,-1425.0,0.00029014,2]
[391077365,1760304662254,-1425.0,0.00029018,2]
[391077366,1760304662264,-1425.0,0.00029023,2]
[391077367,1760304662275,-500.0,0.00029023,7]
[391077368,1760304662285,-1000.0,0.00029025,2]
[391077369,1760304662295,-1000.0,0.00029029,2]
[391077370,1760304662306,-1444.0,0.00029041,120]
[391077371,1760304662317,-600.0,0.00029041,2]
[391077372,1760304662327,-290.39862941,0.00029042,2]
[391077373,1760304662338,-1425.0,0.00029047,2]
[391077374,1760304662348,-150.0,0.0002905,2]
[391077375,1760304662359,-150.0,0.00029062,2]
[391077376,1760304662370,-150.0,0.00029068,2]
[391077377,1760304662380,-1200.0,0.00029073,7]
[391077378,1760304662391,-652.0,0.00029077,2]
[391077379,1760304662406,-2500.0,0.00029078,7]
[391077380,1760304662417,-3531.93,0.00029084,120]
[391077381,1760304662427,-1884.98,0.00029084,120]
[391077382,1760304662439,-500.0,0.00029084,120]
[391077383,1760304662450,-1176.66,0.00029084,120]
[391077384,1760304662460,-507.17,0.00029094,120]
[391077385,1760304662472,-652.0,0.00029094,2]
[391077386,1760304662482,-3531.93,0.00029095,120]
[391077387,1760304662493,-1884.98,0.00029095,120]
[391077388,1760304662503,-500.0,0.00029095,120]
[391077389,1760304662513,-1176.66,0.00029095,120]
[391077390,1760304662523,-1000.0,0.000291,2]
[391077391,1760304662533,-500.0,0.000291,2]
[391077392,1760304662544,-3531.93,0.00029105,120]
[391077393,1760304662564,-1884.98,0.00029105,120]
[391077394,1760304662582,-500.0,0.00029105,120]
[391077395,1760304662593,-1176.66,0.00029105,120]
[391077396,1760304662603,-1425.0,0.00029109,2]
[391077397,1760304662614,-3531.93,0.00029115,120]
[391077398,1760304662625,-1884.98,0.00029115,120]
[391077399,1760304662635,-500.0,0.00029115,120]
[391077400,1760304662646,-1176.66,0.00029115,120]
[391077401,1760304662656,-284.77774891,0.00029139,2]
[391077402,1760304662668,-600.0,0.0002914,7]
[391077403,1760304662678,-215.41853962,0.00029145,2]
[391077404,1760304662688,-1200.0,0.00029151,7]
[391077405,1760304662699,-500.0,0.00029151,7]
[391077406,1760304662709,-205.77307755,0.00029154,3]
[391077407,1760304662719,-1000.0,0.00029155,2]
[391077408,1760304662729,-1400.0,0.00029156,7]
[391077409,1760304662739,-1425.0,0.0002916,2]
[391077410,1760304662749,-1000.0,0.0002916,2]
[391077411,1760304662760,-532.04033263,0.0002917,2]
[391077412,1760304662771,-700.0,0.0002917,2]
[391077413,1760304662781,-700.0,0.0002917,2]
[391077414,1760304662791,-1425.0,0.00029171,2]
[391077415,1760304662801,-1425.0,0.00029172,2]
[391077416,1760304662811,-3531.93,0.00029174,120]
[391077417,1760304662821,-1884.98,0.00029174,120]
[391077418,1760304662831,-500.0,0.00029174,120]
[391077419,1760304662841,-1176.66,0.00029174,120]
[391077420,1760304662852,-1900.0,0.00029175,7]
[391077421,1760304662864,-942.87089364,0.00029176,2]
[391077422,1760304662874,-1000.0,0.00029177,2]
[391077423,1760304662885,-500.0,0.00029196,2]
[391077424,1760304662895,-2297.08,0.00029196,120]
[391077425,1760304662905,-2232.5,0.00029196,120]
[391077426,1760304662915,-625.16,0.00029196,120]
[391077427,1760304662926,-400.0,0.000292,120]
[391077428,1760304662935,-442.0,0.000292,2]
[391077429,1760304662946,-169.1,0.000292,20]
[391077430,1760304662956,-169.1,0.000292,20]
[391077431,1760304662967,-200.0,0.000292,2]
[391077432,1760304662976,-168.0,0.00029202,2]
[391077433,1760304662986,-507.17,0.00029202,120]
[391077434,1760304662996,-507.17,0.00029204,120]
[391077435,1760304663009,-500.0,0.00029204,7]
[391077436,1760304663019,-2347.45,0.00029205,2]
[391077437,1760304663029,-2347.45,0.00029205,2]
[391077438,1760304663039,-2347.45,0.00029205,2]
[391077439,1760304663050,-2347.45,0.00029205,2]
[391077440,1760304663060,-2347.45,0.00029205,2]
[391077441,1760304663072,-2347.45,0.00029205,2]
[391077442,1760304663082,-2347.45,0.00029205,2]
[391077443,1760304663092,-2347.45,0.00029205,2]
[391077444,1760304663102,-2347.45,0.00029205,2]
[391077445,1760304663116,-2347.45,0.00029205,2]
[391077446,1760304663126,-2347.45,0.00029205,2]
[391077447,1760304663136,-2347.45,0.00029205,2]
[391077448,1760304663145,-2347.45,0.00029205,2]
[391077449,1760304663155,-2347.45,0.00029205,2]
[391077450,1760304663165,-2347.45,0.00029205,2]
[391077451,1760304663175,-2347.45,0.00029205,2]
[391077452,1760304663185,-2347.45,0.00029205,2]
[391077453,1760304663195,-2347.45,0.00029205,2]
[391077454,1760304663204,-2347.45,0.00029205,2]
[391077455,1760304663214,-2347.45,0.00029205,2]
[391077456,1760304663224,-2347.45,0.00029205,2]
[391077457,1760304663234,-2347.45,0.00029205,2]
[391077458,1760304663245,-2347.45,0.00029205,2]
[391077459,1760304663255,-2347.55198933,0.00029205,2]
[391077460,1760304663265,-1425.0,0.00029207,2]
[391077461,1760304663275,-507.17,0.00029212,120]
[391077462,1760304663285,-3531.93,0.00029213,120]
[391077463,1760304663295,-1806.91,0.00029213,30]
[391077464,1760304663305,-812.6,0.00029213,120]
[391077465,1760304663315,-509.8,0.00029213,120]
[391077466,1760304663325,-500.0,0.00029213,120]
[391077467,1760304663335,-1897.1,0.00029213,7]
[391077468,1760304663345,-1554.39,0.00029213,120]
[391077469,1760304663354,-1884.98,0.00029213,120]
[391077470,1760304663366,-2369.08,0.00029213,30]
[391077471,1760304663376,-1161.04,0.00029213,120]
[391077472,1760304663386,-500.0,0.00029213,120]
[391077473,1760304663399,-1176.66,0.00029213,120]
[391077474,1760304663409,-655.9,0.00029213,120]
[391077475,1760304663419,-500.0,0.00029213,2]
[391077476,1760304663429,-500.0,0.00029213,2]
[391077477,1760304663441,-500.0,0.00029213,2]
[391077478,1760304663452,-500.0,0.00029213,2]
[391077479,1760304663462,-500.0,0.00029213,2]
[391077480,1760304663472,-500.0,0.00029213,2]
[391077481,1760304663482,-500.0,0.00029213,2]
[391077482,1760304663492,-500.0,0.00029213,2]
[391077483,1760304663502,-394.63333705,0.00029213,2]
[391077484,1760304663512,-500.0,0.00029213,120]
[391077485,1760304663522,-500.0,0.00029213,2]
[391077486,1760304663532,-499.76478652,0.00029213,2]
[391077487,1760304663542,-500.0,0.00029213,2]
[391077488,1760304663552,-500.0,0.00029213,2]
[391077489,1760304663562,-500.0,0.00029213,2]
[391077490,1760304663572,-500.0,0.00029213,2]
[391077491,1760304663582,-500.0,0.00029213,2]
[391077492,1760304663592,-241.42,0.00029213,2]
[391077493,1760304663602,-3039.0,0.00029213,2]
[391077494,1760304663614,-3039.0,0.00029213,2]
[391077495,1760304663624,-3039.0,0.00029213,2]
[391077496,1760304663634,-3039.0,0.00029213,2]
[391077497,1760304663644,-3039.0,0.00029213,2]
[391077498,1760304663654,-3039.0,0.00029213,2]
[391077499,1760304663664,-3039.0,0.00029213,2]
[391077500,1760304663674,-3039.0,0.00029213,2]
[391077501,1760304663684,-3039.0,0.00029213,2]
[391077502,1760304663694,-3039.0,0.00029213,2]
[391077503,1760304663704,-3039.0,0.00029213,2]
[391077504,1760304663714,-3039.0,0.00029213,2]
[391077505,1760304663724,-3039.0,0.00029213,2]
[391077506,1760304663735,-3039.0,0.00029213,2]
[391077507,1760304663745,-1838.17,0.00029213,120]
[391077508,1760304663755,-3039.0,0.00029213,2]
[391077509,1760304663764,-3039.0,0.00029213,2]
[391077510,1760304663774,-3039.0,0.00029213,2]
[391077511,1760304663788,-3039.0,0.00029213,2]
[391077512,1760304663799,-3039.0,0.00029213,2]
[391077513,1760304663809,-3039.0,0.00029213,2]
[391077514,1760304663819,-3039.0,0.00029213,2]
[391077515,1760304663828,-3039.0,0.00029213,2]
[391077516,1760304663840,-3039.0,0.00029213,2]
[391077517,1760304663851,-3039.22680297,0.00029213,2]
[391077518,1760304663864,-500.0,0.00029213,2]
[391077519,1760304663875,-2297.08,0.00029213,120]
[391077520,1760304663885,-500.0,0.00029213,120]
[391077521,1760304663896,-2232.5,0.00029213,120]